{"text_format":"3","workbook":"xlsx","n_sheets":4,"sheets":["Riepilogo contante","Contante speso","Riepilogo mensile","Dati grafico"],"not_rendered":{"charts":2,"defined_names":7,"pivot_tables":2},"read":"whole","date_system":"1900"}

{"sheet":"Riepilogo contante","index":0,"n_rows":22,"n_cols":7,"rows_kept":22,"merged":[[0,1,1,5],[2,1,2,2],[2,3,2,4],[3,1,18,1],[19,1,20,1],[21,1,22,1]]}
[null,"Registrazione spese personali"]
[{"$nulls":6},"Contante speso >"]
[{"$nulls":3},"Riepilogo contante"]
[null,"Questa cella contiene l'istogramma che visualizza la percentuale di contante disponibile.",null,"Conto","Contante iniziale","Totale spese","Contante rimanente"]
[{"$nulls":3},"Corrente",{"v":3000,"d":"3000.00"},{"$f":"SUMIF(ContanteSpeso[Conto],\"=\" &TabellaRiepilogoContante[[#This Row],[Conto]],ContanteSpeso[Importo])","v":{"v":496,"d":"496.00"}},{"$f":"TabellaRiepilogoContante[[#This Row],[Contante iniziale]]-TabellaRiepilogoContante[[#This Row],[Totale spese]]","v":{"v":2504,"d":"2504.00"}}]
[{"$nulls":3},"Risparmio",{"v":500,"d":"500.00"},{"$f":"SUMIF(ContanteSpeso[Conto],\"=\" &TabellaRiepilogoContante[[#This Row],[Conto]],ContanteSpeso[Importo])","v":{"v":450,"d":"450.00"}},{"$f":"TabellaRiepilogoContante[[#This Row],[Contante iniziale]]-TabellaRiepilogoContante[[#This Row],[Totale spese]]","v":{"v":50,"d":"50.00"}}]
[{"$nulls":3},"Altro",{"v":200,"d":"200.00"},{"$f":"SUMIF(ContanteSpeso[Conto],\"=\" &TabellaRiepilogoContante[[#This Row],[Conto]],ContanteSpeso[Importo])","v":{"v":30,"d":"30.00"}},{"$f":"TabellaRiepilogoContante[[#This Row],[Contante iniziale]]-TabellaRiepilogoContante[[#This Row],[Totale spese]]","v":{"v":170,"d":"170.00"}}]
[{"$nulls":3},"Totale",{"$f":"SUBTOTAL(109,TabellaRiepilogoContante[Contante iniziale])","v":{"v":3700,"d":"3700.00"}},{"$f":"SUBTOTAL(109,TabellaRiepilogoContante[Totale spese])","v":{"v":976,"d":"976.00"}},{"$f":"SUBTOTAL(109,TabellaRiepilogoContante[Contante rimanente])","v":{"v":2724,"d":"2724.00"}}]
{"$rows_empty":11}
[null,"Contante\nRimanente:"]
[]
[null,{"$f":"TabellaRiepilogoContante[[#Totals],[Contante rimanente]]/TabellaRiepilogoContante[[#Totals],[Contante iniziale]]","v":{"v":0.7362162162162162,"d":"74%"}}]

{"sheet":"Contante speso","index":1,"n_rows":16,"n_cols":6,"rows_kept":16,"merged":[[0,1,1,3],[2,1,2,2],[3,5,6,6],[7,5,14,6]]}
[null,"Registrazione spese personali"]
[{"$nulls":4},"< Riepilogo contante","Riepilogo mensile >"]
[null,"Contante speso"]
[null,"Data","Descrizione","Importo","Conto","Questa cella contiene il filtro dei dati per filtrare i dati della tabella in base al tipo di conto."]
[null,{"$f":"TODAY()+105","v":"2023-03-27"},"Prelievo bancomat",{"v":40,"d":"40.00"},"Corrente"]
[null,{"$f":"TODAY()+106","v":"2023-03-28"},"Pranzo",{"v":5,"d":"5.00"},"Corrente"]
[null,{"$f":"TODAY()+107","v":"2023-03-29"},"Rata auto",{"v":230,"d":"230.00"},"Risparmio"]
[null,{"$f":"TODAY()+135","v":"2023-04-26"},"Pagamento elettricità",{"v":70,"d":"70.00"},"Corrente","Questa cella contiene il filtro dei dati per filtrare i dati della tabella in base alla descrizione."]
[null,{"$f":"TODAY()+139","v":"2023-04-30"},"Cena",{"v":53,"d":"53.00"},"Corrente"]
[null,{"$f":"TODAY()+162","v":"2023-05-23"},"Prelievo contante",{"v":100,"d":"100.00"},"Risparmio"]
[null,{"$f":"TODAY()+167","v":"2023-05-28"},"Rata auto",{"v":230,"d":"230.00"},"Corrente"]
[null,{"$f":"TODAY()+198","v":"2023-06-28"},"Pagamento elettricità",{"v":70,"d":"70.00"},"Risparmio"]
[null,{"$f":"TODAY()+212","v":"2023-07-12"},"Prelievo bancomat",{"v":30,"d":"30.00"},"Corrente"]
[null,{"$f":"TODAY()+225","v":"2023-07-25"},"Prelievo bancomat",{"v":50,"d":"50.00"},"Risparmio"]
[null,{"$f":"TODAY()+232","v":"2023-08-01"},"Prelievo bancomat",{"v":30,"d":"30.00"},"Altro"]
[null,{"$f":"TODAY()+283","v":"2023-09-21"},"Pagamento elettricità",{"v":68,"d":"68.00"},"Corrente"]

{"sheet":"Riepilogo mensile","index":2,"n_rows":39,"n_cols":6,"rows_kept":39,"merged":[[0,1,1,4],[2,1,2,5],[3,1,3,6],[4,1,16,4],[4,5,8,6],[9,5,16,6],[17,1,17,5]]}
[null,"Riepilogo mensile"]
[{"$nulls":5},"< Contante speso"]
[null,"Per aggiornare questi dati, selezionare prima di tutto il grafico pivot.  Fare un singolo clic del mouse destro per ottenere il menu di scelta rapida.  Selezionare Aggiorna o Aggiorna tutto per aggiornare il grafico."]
[null,"Riepilogo conto"]
[null,"Questa cella contiene l'istogramma di riepilogo conti che confronta conto corrente, conto risparmio e altro per ogni mese.",{"$nulls":3},"Questa cella contiene il filtro dei dati per filtrare i dati del grafico in base al tipo di conto."]
[]
[]
[]
[]
[{"$nulls":5},"Questa cella contiene il filtro dei dati per filtrare i dati del grafico in base alla descrizione."]
{"$rows_empty":7}
[null,"Riepilogo spese"]
[null,"Dettagli"]
[null,null,"Corrente","Risparmio","Altro","Totale complessivo"]
[null,"mar",{"v":45,"d":"45.00"},{"v":230,"d":"230.00"},null,{"v":275,"d":"275.00"}]
[null,"Prelievo bancomat",{"v":40,"d":"40.00"},null,null,{"v":40,"d":"40.00"}]
[null,"Rata auto",null,{"v":230,"d":"230.00"},null,{"v":230,"d":"230.00"}]
[null,"Pranzo",{"v":5,"d":"5.00"},null,null,{"v":5,"d":"5.00"}]
[null,"apr",{"v":123,"d":"123.00"},null,null,{"v":123,"d":"123.00"}]
[null,"Cena",{"v":53,"d":"53.00"},null,null,{"v":53,"d":"53.00"}]
[null,"Pagamento elettricità",{"v":70,"d":"70.00"},null,null,{"v":70,"d":"70.00"}]
[null,"mag",{"v":230,"d":"230.00"},{"v":100,"d":"100.00"},null,{"v":330,"d":"330.00"}]
[null,"Rata auto",{"v":230,"d":"230.00"},null,null,{"v":230,"d":"230.00"}]
[null,"Prelievo contante",null,{"v":100,"d":"100.00"},null,{"v":100,"d":"100.00"}]
[null,"giu",null,{"v":70,"d":"70.00"},null,{"v":70,"d":"70.00"}]
[null,"Pagamento elettricità",null,{"v":70,"d":"70.00"},null,{"v":70,"d":"70.00"}]
[null,"lug",{"v":30,"d":"30.00"},{"v":50,"d":"50.00"},null,{"v":80,"d":"80.00"}]
[null,"Prelievo bancomat",{"v":30,"d":"30.00"},{"v":50,"d":"50.00"},null,{"v":80,"d":"80.00"}]
[null,"ago",null,null,{"v":30,"d":"30.00"},{"v":30,"d":"30.00"}]
[null,"Prelievo bancomat",null,null,{"v":30,"d":"30.00"},{"v":30,"d":"30.00"}]
[null,"set",{"v":68,"d":"68.00"},null,null,{"v":68,"d":"68.00"}]
[null,"Pagamento elettricità",{"v":68,"d":"68.00"},null,null,{"v":68,"d":"68.00"}]
[null,"Totale complessivo",{"v":496,"d":"496.00"},{"v":450,"d":"450.00"},{"v":30,"d":"30.00"},{"v":976,"d":"976.00"}]

{"sheet":"Dati grafico","index":3,"n_rows":12,"n_cols":6,"rows_kept":12,"merged":[[0,1,0,2]]}
[null,"Dati grafico pivot"]
[null,"Questa tabella pivot rappresenta l'origine dati del grafico pivot Riepilogo conti contenuto nel foglio Riepilogo mensile"]
[null,"Somma di Importo","Etichette di colonna"]
[null,"Etichette di riga","Corrente","Risparmio","Altro","Totale complessivo"]
[null,"mar",{"v":45,"d":"45.00"},{"v":230,"d":"230.00"},null,{"v":275,"d":"275.00"}]
[null,"apr",{"v":123,"d":"123.00"},null,null,{"v":123,"d":"123.00"}]
[null,"mag",{"v":230,"d":"230.00"},{"v":100,"d":"100.00"},null,{"v":330,"d":"330.00"}]
[null,"giu",null,{"v":70,"d":"70.00"},null,{"v":70,"d":"70.00"}]
[null,"lug",{"v":30,"d":"30.00"},{"v":50,"d":"50.00"},null,{"v":80,"d":"80.00"}]
[null,"ago",null,null,{"v":30,"d":"30.00"},{"v":30,"d":"30.00"}]
[null,"set",{"v":68,"d":"68.00"},null,null,{"v":68,"d":"68.00"}]
[null,"Totale complessivo",{"v":496,"d":"496.00"},{"v":450,"d":"450.00"},{"v":30,"d":"30.00"},{"v":976,"d":"976.00"}]